[Event "Orbis-2 IM 2019"]
[Site "Paracin"]
[Date "2019.07.16"]
[Round "5.2"]
[White "Patil, Mitali"]
[Black "Manish Anto Cristiano F"]
[Result "0-1"]
[ECO "C01"]
[WhiteElo "2009"]
[BlackElo "2208"]
[Annotator "NA"]
[PlyCount "68"]
[EventDate "2019.07.13"]
[EventType "tourn"]
[EventCountry "SRB"]
[SourceTitle "playchess.com"]
[Source "ChessBase"]
[SourceQuality "1"]
[TimeControl "40/5400+30:1800+30"]

1. e4 {[%emt 0:00:00]} e6 {[%emt 0:00:00]} 2. d4 {[%emt 0:00:00]} d5 {[%emt 0:00:23]} 3. exd5 {[%emt 0:00:00]} exd5 {[%emt 0:00:40]} 4. c4 {[%emt 0:00:03]} Nf6 {[%emt 0:00:34]} 5. Nc3 {[%emt 0:00:02]} Bb4 {[%emt 0:00:18]} 6. Nf3 {[%emt 0:00:37]} O-O {[%emt 0:00:35]} 7. Bd3 {[%emt 0:01:33]} dxc4 {[%emt 0:06:23]} 8. Bxc4 {[%emt 0:00:04]} Bg4 {[%emt 0:00:19]} 9. Be3 {[%emt 0:03:39]} Nc6 {[%emt 0:00:16]} 10. O-O {[%emt 0:01:11]} Rb8 {[%emt 0:00:22]} 11. Be2 {[%emt 0:19:34]} Nd5 {[%emt 0:06:21]} 12. Qb3 {[%emt 0:09:10]} Be6 {[%emt 0:05:27]} 13. Qc2 {[%emt 0:00:50]} h6 {[%emt 0:03:37]} 14. Rad1 {[%emt 0:03:38]} Re8 {[%emt 0:03:12]} 15. a3 {[%emt 0:10:19]} Bd6 {[%emt 0:07:06]} 16. Rfe1 {[%emt 0:04:07]} Na5 {[%emt 0:04:07]} 17. Nd2 {[%emt 0:06:22]} Qh4 {[%emt 0:14:06]} 18. g3 {[%emt 0:03:05]} Nxe3 {[%emt 0:00:44]} 19. fxe3 {[%emt 0:00:40]} Bxg3 {[%emt 0:01:59]} 20. hxg3 {[%emt 0:01:48]} Qxg3+ {[%emt 0:01:16]} 21. Kh1 {[%emt 0:00:05]} Qh3+ {[%emt 0:00:13]} 22. Kg1 {[%emt 0:00:02]} Qxe3+ {[%emt 0:00:12]} 23. Kh1 {[%emt 0:01:15]} Qh3+ {[%emt 0:00:12]} 24. Kg1 {[%emt 0:00:03]} Qg3+ {[%emt 0:00:16]} 25. Kh1 {[%emt 0:00:12]} Qh4+ {[%emt 0:00:07]} 26. Kg1 {[%emt 0:02:30]} Bh3 {[%emt 0:05:20]} 27. Nce4 {[%emt 0:05:23]} f5 {[%emt 0:00:22]} 28. Bf3 {[%emt 0:04:06]} fxe4 {[%emt 0:00:14]} 29. Rxe4 {[%emt 0:07:54]} Rxe4 {[%emt 0:05:37]} 30. Bxe4 {[%emt 0:04:51]} Rf8 {[%emt 0:00:49]} 31. Nc4 {[%emt 0:05:10]} Nxc4 {[%emt 0:00:38]} 32. Qxc4+ {[%emt 0:00:02]} Kh8 {[%emt 0:00:22]} 33. Qd3 {[%emt 0:00:25]} Rf4 {[%emt 0:01:07]} 34. Bxb7 {[%emt 0:00:33]} Rg4+ {[%emt 0:00:09] Ra1} 0-1

[Event "Orbis-2 IM 2019"]
[Site "Paracin"]
[Date "2019.07.16"]
[Round "5.4"]
[White "Chen, Peng"]
[Black "Munshi, Aditya"]
[Result "1-0"]
[ECO "B10"]
[WhiteElo "2328"]
[BlackElo "2125"]
[Annotator "NA"]
[PlyCount "59"]
[EventDate "2019.07.13"]
[EventType "tourn"]
[EventCountry "SRB"]
[SourceTitle "playchess.com"]
[Source "ChessBase"]
[SourceQuality "1"]
[TimeControl "40/5400+30:1800+30"]

1. e4 {[%emt 0:00:00]} c6 {[%emt 0:00:00]} 2. Nf3 {[%emt 0:01:05]} d5 {[%emt 0:00:00]} 3. exd5 {[%emt 0:00:23]} cxd5 {[%emt 0:00:00]} 4. Ne5 {[%emt 0:00:06]} Nc6 {[%emt 0:09:21]} 5. d4 {[%emt 0:00:41]} Nf6 {[%emt 0:01:07]} 6. c3 {[%emt 0:01:10]} e6 {[%emt 0:04:00]} 7. Bd3 {[%emt 0:00:40]} Qc7 {[%emt 0:03:50]} 8. f4 {[%emt 0:00:50]} g6 {[%emt 0:10:12]} 9. O-O {[%emt 0:02:08]} Bg7 {[%emt 0:02:16]} 10. Nd2 {[%emt 0:01:48]} O-O {[%emt 0:04:04]} 11. Qe1 {[%emt 0:00:05]} Nd7 {[%emt 0:02:53]} 12. Ndf3 {[%emt 0:01:04]} Re8 {[%emt 0:03:08]} 13. Qh4 {[%emt 0:02:08]} Qd8 {[%emt 0:06:39]} 14. Ng5 {[%emt 0:02:22]} h6 {[%emt 0:02:11]} 15. Nexf7 {[%emt 0:02:46]} hxg5 {[%emt 0:01:08]} 16. fxg5 {[%emt 0:00:04]} Qe7 {[%emt 0:00:53]} 17. Bxg6 {[%emt 0:00:05]} Nf8 {[%emt 0:00:29]} 18. Nh6+ {[%emt 0:00:39]} Bxh6 {[%emt 0:00:14]} 19. Bf7+ {[%emt 0:03:43]} Qxf7 {[%emt 0:00:27]} 20. Rxf7 {[%emt 0:00:02]} Kxf7 {[%emt 0:00:14]} 21. gxh6 {[%emt 0:00:04]} Ng6 {[%emt 0:01:43]} 22. Qf2+ {[%emt 0:00:19]} Ke7 {[%emt 0:00:29]} 23. Bg5+ {[%emt 0:00:02]} Kd6 {[%emt 0:00:31]} 24. Qf7 {[%emt 0:00:09]} Bd7 {[%emt 0:00:27]} 25. Qxg6 {[%emt 0:00:06]} Ne7 {[%emt 0:00:16]} 26. Bxe7+ {[%emt 0:00:33]} Rxe7 {[%emt 0:00:05]} 27. Rf1 {[%emt 0:00:04]} Rh8 {[%emt 0:00:22]} 28. Rf7 {[%emt 0:00:10]} Rxf7 {[%emt 0:00:08]} 29. Qxf7 {[%emt 0:00:02]} Be8 {[%emt 0:00:11]} 30. Qg7 {[%emt 0:00:05]} 1-0

[Event "Orbis-2 IM 2019"]
[Site "Paracin"]
[Date "2019.07.16"]
[Round "5.5"]
[White "Dedebas, Emre Emin"]
[Black "Abramovic, Bosko"]
[Result "1/2-1/2"]
[ECO "D37"]
[WhiteElo "2301"]
[BlackElo "2373"]
[Annotator "ChessBase"]
[PlyCount "85"]
[EventDate "2019.07.13"]
[EventType "tourn"]
[EventCountry "SRB"]
[SourceTitle "playchess.com"]
[Source "ChessBase"]
[SourceQuality "1"]
[TimeControl "40/5400+30:1800+30"]

1. d4 {[%emt 0:00:00]} Nf6 {[%emt 0:00:00]} 2. c4 {[%emt 0:00:00]} e6 {[%emt 0:00:00]} 3. Nf3 {[%emt 0:00:00]} d5 {[%emt 0:00:00]} 4. Nc3 {[%emt 0:00:00]} Nbd7 {[%emt 0:00:25]} 5. Bf4 {[%emt 0:00:00]} dxc4 {[%emt 0:00:27]} 6. e3 {[%emt 0:00:16]} Nb6 {[%emt 0:00:17]} 7. Bxc4 {[%emt 0:00:14]} Nxc4 {[%emt 0:00:06]} 8. Qa4+ {[%emt 0:00:05]} c6 {[%emt 0:00:07]} 9. Qxc4 {[%emt 0:00:06]} Nd5 {[%emt 0:00:06]} 10. O-O {[%emt 0:10:22]} Nxf4 {[%emt 0:00:09]} 11. exf4 {[%emt 0:00:03]} Be7 {[%emt 0:00:14]} 12. Rad1 {[%emt 0:05:12]} O-O {[%emt 0:00:12]} 13. Ne5 {[%emt 0:01:22]} Qb6 {[%emt 0:01:29]} 14. Qe2 {[%emt 0:19:25]} Qc7 {[%emt 0:06:19]} 15. Rfe1 {[%emt 0:07:21]} f6 {[%emt 0:26:04]} 16. Nd3 {[%emt 0:04:06]} Bd6 {[%emt 0:00:19]} 17. Qf3 {[%emt 0:06:39]} Bd7 {[%emt 0:06:05]} 18. Nc5 {[%emt 0:04:55]} Rae8 {[%emt 0:00:32]} 19. Nxd7 {[%emt 0:04:10]} Qxd7 {[%emt 0:00:06]} 20. g3 {[%emt 0:00:42]} Be7 {[%emt 0:11:46]} 21. Qe2 {[%emt 0:08:08]} Bd8 {[%emt 0:01:06]} 22. Qc4 {[%emt 0:08:45]} b5 {[%emt 0:00:19]} 23. Qb3 {[%emt 0:02:36]} f5 {[%emt 0:01:56]} 24. a4 {[%emt 0:00:23]} a6 {[%emt 0:00:20]} 25. Re2 {[%emt 0:01:12]} g6 {[%emt 0:09:10]} 26. axb5 {[%emt 0:03:15]} axb5 {[%emt 0:00:06]} 27. Na2 {[%emt 0:01:29]} Ba5 {[%emt 0:03:23]} 28. Nc1 {[%emt 0:01:08]} Re7 {[%emt 0:26:57]} 29. Nd3 {[%emt 0:02:41]} Rd8 {[%emt 0:00:11]} 30. Ne5 {[%emt 0:01:40]} Qd6 {[%emt 0:00:12]} 31. Rc1 {[%emt 0:03:19]} Rc8 {[%emt 0:01:38]} 32. Rec2 {[%emt 0:03:59]} Rec7 {[%emt 0:00:10]} 33. Qf3 {[%emt 0:01:52]} Qxd4 {[%emt 0:01:35]} 34. Rxc6 {[%emt 0:00:10]} Qd5 {[%emt 0:01:16]} 35. Rxc7 {[%emt 0:01:21]} Rxc7 {[%emt 0:00:02]} 36. Rxc7 {[%emt 0:00:25]} Bxc7 {[%emt 0:00:01]} 37. Qxd5 {[%emt 0:00:35]} exd5 {[%emt 0:00:07]} 38. Kf1 {[%emt 0:00:03]} Kf8 {[%emt 0:00:28]} 39. Ke2 {[%emt 0:00:43]} Ke7 {[%emt 0:00:20]} 40. Kd3 {[%emt 0:00:00]} Bb6 {[%emt 0:00:00]} 41. Nc6+ {[%emt 0:02:56]} Kd6 {[%emt 0:03:04]} 42. Nd4 {[%emt 0:01:57]} b4 {[%emt 0:25:14] Nb} 43. Nb5+ {Ke5} 1/2-1/2